[Event "*** Titled Tuesday Blitz"]
[Site "Chess.com"]
[Date "2020.12.29"]
[Round "8"]
[White "JoAttack"]
[Black "Ariadna_Atreides"]
[Result "1/2-1/2"]
[WhiteElo "2188"]
[BlackElo "2076"]
[TimeControl "180+1"]
[EndTime "11:28:55 PST"]
[Termination "Game drawn by repetition"]

1. d4 {[%clk 0:03:00.9]} 1... Nf6 {[%clk 0:02:57.8]} 2. c4 {[%clk 0:03:00.1]}
2... e6 {[%clk 0:02:57.4]} 3. Nc3 {[%clk 0:02:59.9]} 3... Bb4 {[%clk 0:02:57.5]}
4. Qc2 {[%clk 0:02:58.9]} 4... O-O {[%clk 0:02:55.8]} 5. a3 {[%clk 0:02:58.1]}
5... Bxc3+ {[%clk 0:02:55.1]} 6. Qxc3 {[%clk 0:02:58.1]} 6... b6 {[%clk
0:02:54.4]} 7. Nf3 {[%clk 0:02:57.1]} 7... Bb7 {[%clk 0:02:54.4]} 8. Bg5 {[%clk
0:02:54.7]} 8... h6 {[%clk 0:02:53.4]} 9. Bh4 {[%clk 0:02:53.6]} 9... d6 {[%clk
0:02:50.8]} 10. e3 {[%clk 0:02:52.7]} 10... Nbd7 {[%clk 0:02:50.3]} 11. Be2
{[%clk 0:02:51.7]} 11... Qe8 {[%clk 0:02:44.7]} 12. O-O {[%clk 0:02:49.2]} 12...
g5 {[%clk 0:02:35.5]} 13. Bg3 {[%clk 0:02:47.4]} 13... Ne4 {[%clk 0:02:35.5]}
14. Qc2 {[%clk 0:02:46.8]} 14... f5 {[%clk 0:02:33.1]} 15. b4 {[%clk 0:02:38.2]}
15... Ndf6 {[%clk 0:02:27.3]} 16. c5 {[%clk 0:02:34.7]} 16... Rc8 {[%clk
0:02:24]} 17. Rac1 {[%clk 0:02:30.8]} 17... Nxg3 {[%clk 0:02:16]} 18. hxg3
{[%clk 0:02:29.4]} 18... Be4 {[%clk 0:02:09]} 19. Qb3 {[%clk 0:02:24.6]} 19...
Bd5 {[%clk 0:01:50.9]} 20. Qc2 {[%clk 0:02:21.2]} 20... Be4 {[%clk 0:01:44.7]}
21. Qa2 {[%clk 0:02:18.6]} 21... Bd5 {[%clk 0:01:43.4]} 22. Qb2 {[%clk
0:02:17.8]} 22... Qh5 {[%clk 0:01:26.8]} 23. Ne5 {[%clk 0:02:01.9]} 23... Qe8
{[%clk 0:01:21.6]} 24. Nc4 {[%clk 0:01:57.4]} 24... Ne4 {[%clk 0:01:00.1]} 25.
Bf3 {[%clk 0:01:50.8]} 25... Qe7 {[%clk 0:00:43.4]} 26. Nd2 {[%clk 0:01:38.8]}
26... Nxd2 {[%clk 0:00:38.5]} 27. Qxd2 {[%clk 0:01:36.1]} 27... Bxf3 {[%clk
0:00:37.9]} 28. gxf3 {[%clk 0:01:35.2]} 28... g4 {[%clk 0:00:31.9]} 29. Qe2
{[%clk 0:01:33.3]} 29... Qg5 {[%clk 0:00:29.8]} 30. Kg2 {[%clk 0:01:28.9]} 30...
h5 {[%clk 0:00:29.3]} 31. Rh1 {[%clk 0:01:27.6]} 31... Kg7 {[%clk 0:00:28.4]}
32. Rh4 {[%clk 0:01:25.7]} 32... d5 {[%clk 0:00:20.9]} 33. Rch1 {[%clk
0:01:22.7]} 33... Rh8 {[%clk 0:00:20.4]} 34. e4 {[%clk 0:01:12.5]} 34... fxe4
{[%clk 0:00:16.5]} 35. fxg4 {[%clk 0:01:07.3]} 35... Rcf8 {[%clk 0:00:07.8]} 36.
gxh5 {[%clk 0:01:04.5]} 36... Rf3 {[%clk 0:00:05.4]} 37. h6+ {[%clk 0:00:59.3]}
37... Kh7 {[%clk 0:00:05.2]} 38. Rh5 {[%clk 0:00:56.6]} 38... Qg4 {[%clk
0:00:04.3]} 39. Qd2 {[%clk 0:00:50.7]} 39... Rhf8 {[%clk 0:00:03.2]} 40. R5h4
{[%clk 0:00:38.5]} 40... Rxf2+ {[%clk 0:00:03.1]} 41. Qxf2 {[%clk 0:00:37.6]}
41... Rxf2+ {[%clk 0:00:04]} 42. Kxf2 {[%clk 0:00:37.5]} 42... Qf3+ {[%clk
0:00:04.6]} 43. Ke1 {[%clk 0:00:37.5]} 43... Qxg3+ {[%clk 0:00:04]} 44. Ke2
{[%clk 0:00:35.4]} 44... Qf3+ {[%clk 0:00:03.8]} 45. Kd2 {[%clk 0:00:30]} 45...
Qf2+ {[%clk 0:00:03.6]} 46. Kc3 {[%clk 0:00:29]} 46... e3 {[%clk 0:00:03.9]} 47.
R1h2 {[%clk 0:00:26.2]} 47... Qe1+ {[%clk 0:00:03.4]} 48. Kd3 {[%clk 0:00:24.2]}
48... e2 {[%clk 0:00:02.9]} 49. Ke3 {[%clk 0:00:21.7]} 49... Qg1+ {[%clk
0:00:01.4]} 50. Kxe2 {[%clk 0:00:20.4]} 50... Qc1 {[%clk 0:00:01.1]} 51. R2h3
{[%clk 0:00:17.7]} 51... Qc2+ {[%clk 0:00:01.1]} 52. Kf3 {[%clk 0:00:15.8]}
52... Qc3+ {[%clk 0:00:01.2]} 53. Kg2 {[%clk 0:00:12.4]} 53... Qc2+ {[%clk
0:00:01.3]} 54. Kg1 {[%clk 0:00:12.2]} 54... Qd1+ {[%clk 0:00:01.3]} 55. Kf2
{[%clk 0:00:12]} 55... Qd2+ {[%clk 0:00:01.9]} 56. Kf1 {[%clk 0:00:11.8]} 56...
Qd1+ {[%clk 0:00:01.4]} 57. Kf2 {[%clk 0:00:11.8]} 57... Qd2+ {[%clk 0:00:02.3]}
58. Kf1 {[%clk 0:00:11.7]} 58... Qd1+ {[%clk 0:00:02.7]} 59. Kf2 {[%clk
0:00:11.6]} 1/2-1/2

[Event "*** Titled Tuesday Blitz"]
[Site "Chess.com"]
[Date "2020.12.29"]
[Round "8"]
[White "Msb2"]
[Black "igorkovalenko"]
[Result "1-0"]
[WhiteElo "2801"]
[BlackElo "2896"]
[TimeControl "180+1"]
[EndTime "11:28:58 PST"]
[Termination "Msb2 won by resignation"]

1. d4 {[%clk 0:03:00.9]} 1... Nf6 {[%clk 0:03:00]} 2. c4 {[%clk 0:03:00.2]} 2...
e6 {[%clk 0:03:00]} 3. Nc3 {[%clk 0:03:00.8]} 3... Bb4 {[%clk 0:02:59.5]} 4. e3
{[%clk 0:03:01.5]} 4... O-O {[%clk 0:02:59.1]} 5. Bd2 {[%clk 0:03:02.2]} 5...
Re8 {[%clk 0:02:55.4]} 6. Nf3 {[%clk 0:03:02.1]} 6... a5 {[%clk 0:02:52.6]} 7.
Rc1 {[%clk 0:03:01.7]} 7... b6 {[%clk 0:02:44.5]} 8. Bd3 {[%clk 0:03:01.6]} 8...
Bb7 {[%clk 0:02:44.5]} 9. O-O {[%clk 0:02:59.5]} 9... d6 {[%clk 0:02:40.6]} 10.
a3 {[%clk 0:02:48.6]} 10... Bxc3 {[%clk 0:02:40.3]} 11. Bxc3 {[%clk 0:02:49.5]}
11... Ne4 {[%clk 0:02:32.2]} 12. Be1 {[%clk 0:02:48.9]} 12... a4 {[%clk
0:02:31.2]} 13. Kh1 {[%clk 0:02:47.4]} 13... f5 {[%clk 0:02:30.4]} 14. Ng1
{[%clk 0:02:47.7]} 14... Qg5 {[%clk 0:02:25.2]} 15. f3 {[%clk 0:02:45.6]} 15...
Nf6 {[%clk 0:02:23.4]} 16. Qe2 {[%clk 0:02:39.1]} 16... Nbd7 {[%clk 0:02:19]}
17. Nh3 {[%clk 0:02:38.9]} 17... Qh6 {[%clk 0:02:15.8]} 18. Bd2 {[%clk
0:02:38.3]} 18... Qh4 {[%clk 0:02:03.4]} 19. Qf2 {[%clk 0:02:16.6]} 19... Qxf2
{[%clk 0:01:37.2]} 20. Nxf2 {[%clk 0:02:17.5]} 20... g6 {[%clk 0:01:37.2]} 21.
e4 {[%clk 0:02:13.6]} 21... c5 {[%clk 0:01:31.9]} 22. d5 {[%clk 0:02:10.5]}
22... Ne5 {[%clk 0:01:26.7]} 23. Be2 {[%clk 0:02:01.5]} 23... exd5 {[%clk
0:01:15.7]} 24. exd5 {[%clk 0:01:57.3]} 24... Ba6 {[%clk 0:01:13.2]} 25. Rfe1
{[%clk 0:01:51.6]} 25... Ra7 {[%clk 0:01:07.2]} 26. Bf1 {[%clk 0:01:47.9]} 26...
Rae7 {[%clk 0:01:06.5]} 27. Re3 {[%clk 0:01:29.9]} 27... f4 {[%clk 0:00:58.2]}
28. Rec3 {[%clk 0:01:29.3]} 28... g5 {[%clk 0:00:57.4]} 29. b3 {[%clk
0:01:29.7]} 29... axb3 {[%clk 0:00:55.9]} 30. Rxb3 {[%clk 0:01:30.6]} 30... Rb7
{[%clk 0:00:55.4]} 31. a4 {[%clk 0:01:15.4]} 31... Kf7 {[%clk 0:00:54]} 32. Kg1
{[%clk 0:01:15.4]} 32... h6 {[%clk 0:00:52.5]} 33. h3 {[%clk 0:01:13.6]} 33...
Ra8 {[%clk 0:00:32.9]} 34. Bc3 {[%clk 0:01:01.3]} 34... Re8 {[%clk 0:00:22.7]}
35. Bxe5 {[%clk 0:00:51.4]} 35... Rxe5 {[%clk 0:00:23.6]} 36. Rcb1 {[%clk
0:00:52]} 36... Nd7 {[%clk 0:00:22.5]} 37. Ng4 {[%clk 0:00:52.6]} 37... Re8
{[%clk 0:00:18.4]} 38. Nxh6+ {[%clk 0:00:53.1]} 38... Kg6 {[%clk 0:00:13.2]} 39.
Ng4 {[%clk 0:00:54]} 39... Reb8 {[%clk 0:00:13.3]} 40. Bd3+ {[%clk 0:00:53.3]}
40... Kf7 {[%clk 0:00:13.6]} 41. R3b2 {[%clk 0:00:53.1]} 41... Nf6 {[%clk
0:00:11.3]} 42. Nh6+ {[%clk 0:00:52]} 42... Ke7 {[%clk 0:00:10.6]} 43. Re1+
{[%clk 0:00:49.3]} 43... Kd8 {[%clk 0:00:10.9]} 44. Re6 {[%clk 0:00:47.4]} 44...
Nxd5 {[%clk 0:00:11.2]} 45. Rxd6+ {[%clk 0:00:47.4]} 45... Rd7 {[%clk
0:00:11.3]} 46. Rxd7+ {[%clk 0:00:48.1]} 46... Kxd7 {[%clk 0:00:12.2]} 47. Bf5+
{[%clk 0:00:49]} 47... Kd6 {[%clk 0:00:12.4]} 48. cxd5 {[%clk 0:00:49.4]} 48...
Kxd5 {[%clk 0:00:12.3]} 49. Be4+ {[%clk 0:00:46.1]} 49... Kd4 {[%clk 0:00:12.3]}
50. Nf5+ {[%clk 0:00:45.3]} 50... Kc3 {[%clk 0:00:12.8]} 51. Rb1 {[%clk
0:00:45]} 51... c4 {[%clk 0:00:10.5]} 52. Nd6 {[%clk 0:00:41.7]} 52... Kd2
{[%clk 0:00:10.8]} 53. a5 {[%clk 0:00:34.5]} 53... c3 {[%clk 0:00:08]} 54. Rxb6
{[%clk 0:00:34.6]} 54... Rxb6 {[%clk 0:00:05.7]} 55. axb6 {[%clk 0:00:35.5]}
55... Bd3 {[%clk 0:00:05.8]} 56. Bxd3 {[%clk 0:00:24.6]} 56... Kxd3 {[%clk
0:00:06.7]} 57. b7 {[%clk 0:00:25.3]} 57... c2 {[%clk 0:00:07.6]} 58. b8=Q
{[%clk 0:00:25.9]} 58... c1=Q+ {[%clk 0:00:08.5]} 59. Kh2 {[%clk 0:00:26.5]}
59... Ke2 {[%clk 0:00:09]} 60. Qb5+ {[%clk 0:00:26]} 60... Ke1 {[%clk
0:00:08.6]} 61. Qe5+ {[%clk 0:00:24]} 61... Kf1 {[%clk 0:00:08.4]} 62. Qb5+
{[%clk 0:00:20.9]} 62... Ke1 {[%clk 0:00:08.3]} 63. Ne4 {[%clk 0:00:21.1]} 63...
Qc2 {[%clk 0:00:08.1]} 64. Qb4+ {[%clk 0:00:20.4]} 64... Kf1 {[%clk 0:00:07.6]}
65. Qc4+ {[%clk 0:00:20.8]} 65... Qxc4 {[%clk 0:00:07.7]} 66. Nd2+ {[%clk
0:00:21.1]} 1-0

[Event "*** Titled Tuesday Blitz"]
[Site "Chess.com"]
[Date "2020.12.29"]
[Round "8"]
[White "XDPS"]
[Black "Brave_spirit12"]
[Result "0-1"]
[WhiteElo "2711"]
[BlackElo "2554"]
[TimeControl "180+1"]
[EndTime "11:28:58 PST"]
[Termination "Brave_spirit12 won on time"]

1. d4 {[%clk 0:03:00.9]} 1... Nf6 {[%clk 0:03:00]} 2. c4 {[%clk 0:03:00.5]} 2...
e6 {[%clk 0:03:00.3]} 3. Nc3 {[%clk 0:03:00.9]} 3... d5 {[%clk 0:03:00.4]} 4.
cxd5 {[%clk 0:03:00.3]} 4... exd5 {[%clk 0:03:01.3]} 5. Bg5 {[%clk 0:03:00.7]}
5... Be7 {[%clk 0:03:01.5]} 6. e3 {[%clk 0:03:01.1]} 6... O-O {[%clk 0:03:00.7]}
7. Bd3 {[%clk 0:03:01.4]} 7... c6 {[%clk 0:03:00]} 8. Nge2 {[%clk 0:03:01.7]}
8... Re8 {[%clk 0:02:58.7]} 9. Qc2 {[%clk 0:03:01]} 9... h6 {[%clk 0:02:58.4]}
10. Bh4 {[%clk 0:03:00.7]} 10... Ne4 {[%clk 0:02:51.9]} 11. Bxe7 {[%clk
0:03:00.3]} 11... Qxe7 {[%clk 0:02:52.8]} 12. O-O {[%clk 0:03:00.8]} 12... Bf5
{[%clk 0:02:49.9]} 13. Rae1 {[%clk 0:03:00.4]} 13... Nd7 {[%clk 0:02:49.4]} 14.
Nd1 {[%clk 0:02:50.1]} 14... Bh7 {[%clk 0:02:16.6]} 15. f3 {[%clk 0:02:35.8]}
15... Nef6 {[%clk 0:02:15.6]} 16. Bxh7+ {[%clk 0:02:36.3]} 16... Nxh7 {[%clk
0:02:16.5]} 17. Ng3 {[%clk 0:02:36.9]} 17... Qf6 {[%clk 0:02:12.7]} 18. Qd2
{[%clk 0:02:29.9]} 18... Re7 {[%clk 0:02:08.1]} 19. e4 {[%clk 0:02:29.4]} 19...
Rae8 {[%clk 0:02:07.1]} 20. e5 {[%clk 0:02:29.5]} 20... Qg6 {[%clk 0:02:05.7]}
21. f4 {[%clk 0:02:22]} 21... f5 {[%clk 0:02:04.5]} 22. Ne3 {[%clk 0:02:22.1]}
22... Rf8 {[%clk 0:01:53.4]} 23. Qc2 {[%clk 0:02:20]} 23... Ref7 {[%clk
0:01:44.6]} 24. Kh1 {[%clk 0:01:20.3]} 24... h5 {[%clk 0:01:36.6]} 25. Qd1
{[%clk 0:00:42.5]} 25... h4 {[%clk 0:01:34.1]} 26. Ne2 {[%clk 0:00:42.7]} 26...
Qh6 {[%clk 0:01:31.4]} 27. Ng1 {[%clk 0:00:35.7]} 27... Re7 {[%clk 0:01:30.7]}
28. Qc2 {[%clk 0:00:29.2]} 28... g6 {[%clk 0:01:30.4]} 29. b4 {[%clk 0:00:27.2]}
29... a6 {[%clk 0:01:16.8]} 30. a4 {[%clk 0:00:26.6]} 30... Rfe8 {[%clk
0:01:14.4]} 31. b5 {[%clk 0:00:26.9]} 31... Re6 {[%clk 0:01:14.6]} 32. bxc6
{[%clk 0:00:25.4]} 32... bxc6 {[%clk 0:01:13.2]} 33. Rb1 {[%clk 0:00:25.9]}
33... Nhf8 {[%clk 0:00:45.1]} 34. Rb7 {[%clk 0:00:23.7]} 34... R8e7 {[%clk
0:00:42]} 35. Qe2 {[%clk 0:00:18.4]} 35... Kg7 {[%clk 0:00:35.4]} 36. Qxa6
{[%clk 0:00:15.9]} 36... c5 {[%clk 0:00:18.7]} 37. Qd3 {[%clk 0:00:12]} 37... c4
{[%clk 0:00:17.6]} 38. Qb1 {[%clk 0:00:08.3]} 38... Qh5 {[%clk 0:00:13.8]} 39.
Nxd5 {[%clk 0:00:08.3]} 39... Re8 {[%clk 0:00:12.9]} 40. Nf6 {[%clk 0:00:07.2]}
40... Rxf6 {[%clk 0:00:08.9]} 41. exf6+ {[%clk 0:00:08.1]} 41... Kxf6 {[%clk
0:00:09.8]} 42. Nf3 {[%clk 0:00:08.6]} 42... h3 {[%clk 0:00:09]} 43. g3 {[%clk
0:00:04]} 43... Re3 {[%clk 0:00:08.7]} 44. Qd1 {[%clk 0:00:04.3]} 44... Rd3
{[%clk 0:00:07.4]} 45. Qe2 {[%clk 0:00:04.4]} 45... Kg7 {[%clk 0:00:03.3]} 46.
a5 {[%clk 0:00:04.5]} 46... Kg8 {[%clk 0:00:03]} 47. a6 {[%clk 0:00:04.8]} 47...
Ra3 {[%clk 0:00:03]} 48. a7 {[%clk 0:00:05.3]} 48... c3 {[%clk 0:00:02.3]} 49.
Qc4+ {[%clk 0:00:05.6]} 49... Kh8 {[%clk 0:00:02.1]} 50. Qf7 {[%clk 0:00:05.3]}
50... c2 {[%clk 0:00:01.8]} 51. Ng5 {[%clk 0:00:02.9]} 51... c1=Q {[%clk
0:00:01.3]} 52. Rxc1 {[%clk 0:00:03.1]} 52... Qe2 {[%clk 0:00:01.3]} 0-1

[Event "*** Titled Tuesday Blitz"]
[Site "Chess.com"]
[Date "2020.12.29"]
[Round "8"]
[White "Homino"]
[Black "ambaixador"]
[Result "0-1"]
[WhiteElo "2292"]
[BlackElo "2422"]
[TimeControl "180+1"]
[EndTime "11:28:59 PST"]
[Termination "ambaixador won on time"]

1. e4 {[%clk 0:03:00.9]} 1... c5 {[%clk 0:02:59.6]} 2. Nf3 {[%clk 0:02:59.3]}
2... d6 {[%clk 0:02:59.7]} 3. d4 {[%clk 0:02:59.5]} 3... cxd4 {[%clk 0:03:00.6]}
4. Nxd4 {[%clk 0:02:59.2]} 4... Nf6 {[%clk 0:03:00.8]} 5. Nc3 {[%clk 0:02:59.1]}
5... a6 {[%clk 0:03:01.1]} 6. Be2 {[%clk 0:02:59.1]} 6... e5 {[%clk 0:03:00.5]}
7. Nb3 {[%clk 0:02:59.2]} 7... Be7 {[%clk 0:03:00.2]} 8. O-O {[%clk 0:02:59]}
8... O-O {[%clk 0:02:59.9]} 9. Kh1 {[%clk 0:02:58.7]} 9... Be6 {[%clk
0:02:58.4]} 10. f4 {[%clk 0:02:58.5]} 10... exf4 {[%clk 0:02:58.5]} 11. Bxf4
{[%clk 0:02:57.9]} 11... Nc6 {[%clk 0:02:58.6]} 12. a4 {[%clk 0:02:56.4]} 12...
Ne5 {[%clk 0:02:57.9]} 13. Nd4 {[%clk 0:02:53.5]} 13... Qc7 {[%clk 0:02:56.8]}
14. Bg5 {[%clk 0:02:50.8]} 14... Rfe8 {[%clk 0:02:46.3]} 15. Nf5 {[%clk
0:02:47.9]} 15... Bxf5 {[%clk 0:02:39.9]} 16. Rxf5 {[%clk 0:02:48.8]} 16... Qc6
{[%clk 0:02:22.8]} 17. Bxf6 {[%clk 0:02:16.2]} 17... Bxf6 {[%clk 0:02:23.7]} 18.
Rxf6 {[%clk 0:02:09.5]} 18... gxf6 {[%clk 0:02:24.6]} 19. Nd5 {[%clk 0:02:09]}
19... Re6 {[%clk 0:02:19.8]} 20. Qd2 {[%clk 0:01:54]} 20... Kg7 {[%clk
0:02:15.7]} 21. Rf1 {[%clk 0:01:51.9]} 21... Rae8 {[%clk 0:01:55]} 22. Bd3
{[%clk 0:01:10.1]} 22... Qc5 {[%clk 0:01:00.2]} 23. Ne3 {[%clk 0:00:51.5]} 23...
Kh8 {[%clk 0:00:41.6]} 24. Nf5 {[%clk 0:00:41.7]} 24... Rg8 {[%clk 0:00:41.1]}
25. Qh6 {[%clk 0:00:34]} 25... Ng4 {[%clk 0:00:37.4]} 26. Qf4 {[%clk 0:00:25.1]}
26... Qe5 {[%clk 0:00:33.7]} 27. h3 {[%clk 0:00:14.9]} 27... Qxf4 {[%clk
0:00:31]} 28. Rxf4 {[%clk 0:00:15.8]} 28... Ne5 {[%clk 0:00:31.4]} 29. Nd4
{[%clk 0:00:14.7]} 29... Kg7 {[%clk 0:00:29.4]} 30. Nxe6+ {[%clk 0:00:14.2]}
30... fxe6 {[%clk 0:00:30.3]} 31. Rf2 {[%clk 0:00:13.3]} 31... Kf7 {[%clk
0:00:29.2]} 32. g4 {[%clk 0:00:11.7]} 32... Ke7 {[%clk 0:00:29.1]} 33. Kg2
{[%clk 0:00:11.1]} 33... h5 {[%clk 0:00:28.4]} 34. Kf1 {[%clk 0:00:07.9]} 34...
hxg4 {[%clk 0:00:28.3]} 35. hxg4 {[%clk 0:00:08.8]} 35... Nxg4 {[%clk
0:00:27.9]} 36. Re2 {[%clk 0:00:07.2]} 36... Ne5 {[%clk 0:00:25]} 37. Rh2 {[%clk
0:00:06.4]} 37... Rg7 {[%clk 0:00:21.6]} 38. Rh8 {[%clk 0:00:05.9]} 38... Kd7
{[%clk 0:00:21.4]} 39. Rf8 {[%clk 0:00:05.1]} 39... Rf7 {[%clk 0:00:20.3]} 40.
Rg8 {[%clk 0:00:05.2]} 40... Kc7 {[%clk 0:00:18.1]} 41. Re8 {[%clk 0:00:04.4]}
41... Kd7 {[%clk 0:00:18.1]} 42. Rg8 {[%clk 0:00:04.3]} 42... f5 {[%clk
0:00:14.2]} 43. exf5 {[%clk 0:00:04.1]} 43... Nxd3 {[%clk 0:00:14.4]} 44. cxd3
{[%clk 0:00:03.8]} 44... Rxf5+ {[%clk 0:00:14.7]} 45. Ke2 {[%clk 0:00:04.4]}
45... Rf4 {[%clk 0:00:14.3]} 46. Rg7+ {[%clk 0:00:04.3]} 46... Kc6 {[%clk
0:00:14.5]} 47. Ke3 {[%clk 0:00:04.4]} 47... Rxa4 {[%clk 0:00:14.3]} 48. Re7
{[%clk 0:00:03.2]} 48... e5 {[%clk 0:00:14.5]} 49. Kd2 {[%clk 0:00:03.6]} 49...
Rb4 {[%clk 0:00:14.3]} 50. Kc3 {[%clk 0:00:03.7]} 50... a5 {[%clk 0:00:14.7]}
51. Re8 {[%clk 0:00:03.8]} 51... Rd4 {[%clk 0:00:14.6]} 52. Rc8+ {[%clk
0:00:03.6]} 52... Kb5 {[%clk 0:00:14.8]} 53. Re8 {[%clk 0:00:03.9]} 53... b6
{[%clk 0:00:15]} 54. Rb8 {[%clk 0:00:03.9]} 54... a4 {[%clk 0:00:15]} 55. Ra8
{[%clk 0:00:03]} 55... Rb4 {[%clk 0:00:14.9]} 56. Rd8 {[%clk 0:00:02.1]} 56...
Rb3+ {[%clk 0:00:15.1]} 57. Kc2 {[%clk 0:00:01.8]} 57... Kc5 {[%clk 0:00:16]}
58. Rc8+ {[%clk 0:00:01.8]} 58... Kd4 {[%clk 0:00:15.9]} 0-1

[Event "*** Titled Tuesday Blitz"]
[Site "Chess.com"]
[Date "2020.12.29"]
[Round "8"]
[White "Sharpchess22"]
[Black "amintabatabaei"]
[Result "0-1"]
[WhiteElo "2814"]
[BlackElo "2922"]
[TimeControl "180+1"]
[EndTime "11:29:02 PST"]
[Termination "amintabatabaei won by resignation"]

1. e4 {[%clk 0:03:00.9]} 1... e5 {[%clk 0:02:59.9]} 2. Nf3 {[%clk 0:03:00.5]}
2... Nc6 {[%clk 0:03:00.5]} 3. Bb5 {[%clk 0:02:59.5]} 3... Nf6 {[%clk
0:03:00.7]} 4. d3 {[%clk 0:02:59]} 4... Bc5 {[%clk 0:03:00.5]} 5. c3 {[%clk
0:02:58.6]} 5... O-O {[%clk 0:03:00]} 6. O-O {[%clk 0:02:58.3]} 6... d5 {[%clk
0:03:00.4]} 7. Nbd2 {[%clk 0:02:55.9]} 7... dxe4 {[%clk 0:02:58.3]} 8. dxe4
{[%clk 0:02:52.6]} 8... a5 {[%clk 0:02:53.1]} 9. a4 {[%clk 0:02:48.8]} 9... Qe7
{[%clk 0:02:50.5]} 10. Qe2 {[%clk 0:02:43.7]} 10... Rd8 {[%clk 0:02:42]} 11. Nc4
{[%clk 0:02:39.3]} 11... Bd6 {[%clk 0:02:27.7]} 12. Bg5 {[%clk 0:02:27.7]} 12...
h6 {[%clk 0:02:27.8]} 13. Bh4 {[%clk 0:02:25.5]} 13... Nb8 {[%clk 0:02:26.7]}
14. Ne3 {[%clk 0:02:20.6]} 14... c6 {[%clk 0:02:24.3]} 15. Bd3 {[%clk
0:02:18.7]} 15... Bc5 {[%clk 0:02:05.4]} 16. Bg3 {[%clk 0:02:05.9]} 16... Ng4
{[%clk 0:01:44]} 17. Nc4 {[%clk 0:02:00.1]} 17... Nd7 {[%clk 0:01:08.1]} 18. h3
{[%clk 0:01:46.9]} 18... Ngf6 {[%clk 0:01:08.5]} 19. Nfxe5 {[%clk 0:01:37.9]}
19... Nxe5 {[%clk 0:01:07.5]} 20. Nxe5 {[%clk 0:01:22]} 20... Bd6 {[%clk
0:00:55.2]} 21. f4 {[%clk 0:01:21.1]} 21... Bxe5 {[%clk 0:00:53]} 22. fxe5
{[%clk 0:01:21]} 22... Nh5 {[%clk 0:00:53.3]} 23. Bh2 {[%clk 0:01:09.9]} 23...
g6 {[%clk 0:00:36.8]} 24. Qe3 {[%clk 0:00:56.1]} 24... Be6 {[%clk 0:00:37.1]}
25. Be2 {[%clk 0:00:48.4]} 25... Qg5 {[%clk 0:00:34.7]} 26. Qxg5 {[%clk
0:00:39.5]} 26... hxg5 {[%clk 0:00:35.4]} 27. Bxh5 {[%clk 0:00:36.2]} 27... gxh5
{[%clk 0:00:36.3]} 28. Rf2 {[%clk 0:00:31.4]} 28... Rd3 {[%clk 0:00:32.8]} 29.
Re2 {[%clk 0:00:31.5]} 29... Rad8 {[%clk 0:00:31.6]} 30. Kf2 {[%clk 0:00:31.7]}
30... h4 {[%clk 0:00:30.1]} 31. Ke1 {[%clk 0:00:30]} 31... Kg7 {[%clk
0:00:29.9]} 32. Bg1 {[%clk 0:00:30]} 32... Bc4 {[%clk 0:00:26.4]} 33. Bb6 {[%clk
0:00:28.5]} 33... R8d7 {[%clk 0:00:23.6]} 34. Rc2 {[%clk 0:00:18.3]} 34... Bb3
{[%clk 0:00:21.5]} 35. Re2 {[%clk 0:00:18.4]} 35... Bc4 {[%clk 0:00:21.5]} 36.
Rc2 {[%clk 0:00:17.2]} 36... Kg6 {[%clk 0:00:20.3]} 37. Bxa5 {[%clk 0:00:15.9]}
37... Re7 {[%clk 0:00:20.8]} 38. Re2 {[%clk 0:00:12.2]} 38... Rg3 {[%clk
0:00:17.6]} 39. Rf2 {[%clk 0:00:11.4]} 39... Rxe5 {[%clk 0:00:18.1]} 40. Bb6
{[%clk 0:00:10.4]} 40... Rxe4+ {[%clk 0:00:18.4]} 41. Kd2 {[%clk 0:00:10.6]}
41... Rd3+ {[%clk 0:00:16.9]} 42. Kc2 {[%clk 0:00:10.8]} 42... Rd5 {[%clk
0:00:17.4]} 43. b3 {[%clk 0:00:09.8]} 43... Bd3+ {[%clk 0:00:17.7]} 44. Kb2
{[%clk 0:00:10.2]} 44... Rde5 {[%clk 0:00:13.7]} 45. Rd1 {[%clk 0:00:08.9]}
45... Re2+ {[%clk 0:00:14.1]} 46. Rd2 {[%clk 0:00:09.1]} 46... Rxd2+ {[%clk
0:00:11.9]} 47. Rxd2 {[%clk 0:00:08.4]} 47... Re2 {[%clk 0:00:12.8]} 48. Rxe2
{[%clk 0:00:06]} 48... Bxe2 {[%clk 0:00:13.7]} 49. Bf2 {[%clk 0:00:05.8]} 49...
Bf1 {[%clk 0:00:11.8]} 50. g3 {[%clk 0:00:06.2]} 50... hxg3 {[%clk 0:00:12.4]}
51. Bxg3 {[%clk 0:00:07.1]} 51... Bxh3 {[%clk 0:00:13.3]} 52. Kc2 {[%clk
0:00:07.3]} 52... f5 {[%clk 0:00:13.8]} 53. Kd2 {[%clk 0:00:07.6]} 53... f4
{[%clk 0:00:14.5]} 54. Bh2 {[%clk 0:00:08.1]} 54... Kf5 {[%clk 0:00:14.8]} 55.
b4 {[%clk 0:00:08.5]} 55... g4 {[%clk 0:00:14.6]} 56. c4 {[%clk 0:00:07.5]}
56... g3 {[%clk 0:00:15.1]} 57. Bg1 {[%clk 0:00:07.9]} 57... Bf1 {[%clk
0:00:13.7]} 58. c5 {[%clk 0:00:06.1]} 58... Ke4 {[%clk 0:00:12]} 59. b5 {[%clk
0:00:04.4]} 59... cxb5 {[%clk 0:00:12.8]} 60. axb5 {[%clk 0:00:05.2]} 60... Bxb5
{[%clk 0:00:12.6]} 61. Ke1 {[%clk 0:00:05.1]} 61... f3 {[%clk 0:00:12]} 0-1